Workbook

Sheet 2024年11月
A1: 陆 丰 市 2024 年 11 月 财 政 预 算 收 入 完 成 情 况 表
A2: 2024-11-30 | L2: 单位：万元
A3: 收 入 项 目 | B3: 年 度 | C3: 累 计 | D3: 占 年 | E3: 上 年 | F3: 比上年 | G3: 比上年 | H3: 本 月 | I3: 上 年 | J3: 比上年 | K3: 比上年 | L3: 备 注
B4: 预 算 | C4: 完 成 | D4: 预 算 | E4: 同 期 | F4: 同期增 | G4: 同期增 | H4: 完 成 | I4: 同 月 | J4: 同月增 | K4: 同月增
B5: 数 | C5: 数 | D5: % | E5: 完 成 | F5: 减额 | G5: (减)% | H5: 数 | I5: 完 成 | J5: 减额 | K5: (减)%
A6: （一）税收收入 | B6: =SUM(B7:B20) -> 70,000 | C6: =SUM(C7:C20) -> 44,079 | D6: =C6/B6*100 -> 63.0 | E6: =SUM(E7:E20) -> 50,700 | F6: =C6-E6 -> -6,621 | G6: =F6/E6*100 -> -13.1 | H6: =H7+H8+H9+H10+H11+H12+H13+H14+H15+H16+H17+H18+H19+H20 -> 4,670 | I6: =SUM(I7:I20) -> 4,052 | J6: =H6-I6 -> 618 | K6: =J6/I6*100 -> 15.3
A7: 1、增值税 | B7: 18,300 | C7: 13,460 | D7: 73.6 | E7: 14,053 | F7: -593 | G7: -4.2 | H7: =C7-'[1]2024年10月 '!C7 -> 1,288 | I7: =E7-'[1]2024年10月 '!E7 -> 1,284 | J7: 4 | K7: 0.3
A8: 2、企业所得税 | B8: 5,500 | C8: 6,221 | D8: 113.1 | E8: 3,615 | F8: 2,606 | G8: 72.1 | H8: =C8-'[1]2024年10月 '!C8 -> 104 | I8: =E8-'[1]2024年10月 '!E8 -> 36 | J8: 68 | K8: 188.9
A9: 3、个人所得税 | B9: 1,400 | C9: 1,050 | D9: 75.0 | E9: 1,085 | F9: -35 | G9: -3.2 | H9: =C9-'[1]2024年10月 '!C9 -> 114 | I9: =E9-'[1]2024年10月 '!E9 -> 96 | J9: 18 | K9: 18.8
A10: 4、资源税 | B10: 1,500 | C10: 65 | D10: 4.3 | E10: 33 | F10: 32 | G10: 97.0 | H10: =C10-'[1]2024年10月 '!C10 -> 0 | I10: =E10-'[1]2024年10月 '!E10 -> 20 | J10: -20 | K10: -100.0
A11: 5、城市维护建设税 | B11: 5,900 | C11: 4,468 | D11: 75.7 | E11: 4,703 | F11: -235 | G11: -5.0 | H11: =C11-'[1]2024年10月 '!C11 -> 388 | I11: =E11-'[1]2024年10月 '!E11 -> 434 | J11: -46 | K11: -10.6
A12: 6、房产税 | B12: 4,150 | C12: 2,404 | D12: 57.9 | E12: 1,850 | F12: 554 | G12: 29.9 | H12: =C12-'[1]2024年10月 '!C12 -> 1,531 | I12: =E12-'[1]2024年10月 '!E12 -> 879 | J12: 652 | K12: 74.2
A13: 7、印花税 | B13: 1,850 | C13: 1,546 | D13: 83.6 | E13: 1,412 | F13: 134 | G13: 9.5 | H13: =C13-'[1]2024年10月 '!C13 -> 168 | I13: =E13-'[1]2024年10月 '!E13 -> 63 | J13: 105 | K13: 166.7
A14: 8、城镇土地使用税 | B14: 2,550 | C14: 863 | D14: 33.8 | E14: 1,048 | F14: -185 | G14: -17.7 | H14: =C14-'[1]2024年10月 '!C14 -> 390 | I14: =E14-'[1]2024年10月 '!E14 -> 360 | J14: 30 | K14: 8.3
A15: 9、土地增值税 | B15: 5,000 | C15: 3,987 | D15: 79.7 | E15: 2,966 | F15: 1,021 | G15: 34.4 | H15: =C15-'[1]2024年10月 '!C15 -> 190 | I15: =E15-'[1]2024年10月 '!E15 -> 225 | J15: -35 | K15: -15.6
A16: 10、车船使用税 | B16: 2,000 | C16: 1,703 | D16: 85.2 | E16: 1,578 | F16: 125 | G16: 7.9 | H16: =C16-'[1]2024年10月 '!C16 -> 157 | I16: =E16-'[1]2024年10月 '!E16 -> 149 | J16: 8 | K16: 5.4
A17: 11、环保税 | B17: 350 | C17: 266 | D17: 76.0 | E17: 277 | F17: -11 | G17: -4.0 | H17: =C17-'[1]2024年10月 '!C17 -> -1 | I17: =E17-'[1]2024年10月 '!E17 -> 6 | J17: -7 | K17: -116.7
A18: 12、耕地占用税 | B18: 12,000 | C18: 3,670 | D18: 30.6 | E18: 11,933 | F18: -8,263 | G18: -69.2 | H18: =C18-'[1]2024年10月 '!C18 -> 24 | I18: =E18-'[1]2024年10月 '!E18 -> 1 | J18: 23 | K18: 2,300.0
A19: 13、契 税 | B19: 9,500 | C19: 4,376 | D19: 46.1 | E19: 6,147 | F19: -1,771 | G19: -28.8 | H19: =C19-'[1]2024年10月 '!C19 -> 317 | I19: =E19-'[1]2024年10月 '!E19 -> 499 | J19: -182 | K19: -36.5
A20: 14、其他税收收入 | B20: 0 | C20: 0 | E20: 0 | F20: 0 | H20: =C20-'[1]2024年10月 '!C20 -> 0 | I20: =E20-'[1]2024年10月 '!E20 -> 0 | J20: 0
A21: （二）非税收入 | B21: =SUM(B22:B29) -> 75,800 | C21: =SUM(C22:C29) -> 75,464 | D21: =C21/B21*100 -> 99.6 | E21: =E22+E23+E24+E25+E26+E27+E28+E29 -> 66,957 | F21: 8,507 | G21: =F21/E21*100 -> 12.7 | H21: 1,281 | I21: 2,949 | J21: -1,668 | K21: =J21/I21*100 -> -56.6
A22: 1、专项收入 | B22: 4,400 | C22: 20,062 | D22: 456.0 | E22: 3,736 | F22: 16,326 | G22: 437.0 | H22: =C22-'[1]2024年10月 '!C22 -> 584 | I22: =E22-'[1]2024年10月 '!E22 -> 571 | J22: 13 | K22: 2.3
A23: 2、行政事业性收费收入 | B23: 8,900 | C23: 20,855 | D23: 234.3 | E23: 16,043 | F23: 4,812 | G23: 30.0 | H23: =C23-'[1]2024年10月 '!C23 -> 172 | I23: =E23-'[1]2024年10月 '!E23 -> 5 | J23: 167 | K23: 3,340.0
A24: 3、罚没收入 | B24: 5,500 | C24: 15,293 | D24: 278.1 | E24: 12,682 | F24: 2,611 | G24: 20.6 | H24: =C24-'[1]2024年10月 '!C24 -> 372 | I24: =E24-'[1]2024年10月 '!E24 -> 2,240 | J24: -1,868 | K24: -83.4
A25: 4、国有资源（资产）有偿使用收入 | B25: 49,800 | C25: 3,242 | D25: 6.5 | E25: 19,726 | F25: -16,484 | G25: -83.6 | H25: =C25-'[1]2024年10月 '!C25 -> 27 | I25: =E25-'[1]2024年10月 '!E25 -> 6 | J25: 21 | K25: 350.0
A26: 5、政府住房基金收入 | B26: 300 | C26: 342 | D26: 114.0 | E26: 319 | F26: 23 | G26: 7.2 | H26: =C26-'[1]2024年10月 '!C26 -> 0 | I26: =E26-'[1]2024年10月 '!E26 -> 0 | J26: 0
A27: 6、捐赠收入 | B27: 1,000 | C27: 10,645 | D27: 1064.5 | E27: 12,017 | F27: -1,372 | G27: -11.4 | H27: =C27-'[1]2024年10月 '!C27 -> 13 | I27: =E27-'[1]2024年10月 '!E27 -> 122 | J27: -109 | K27: =J27/I27*100 -> -89.3
A28: 7、其他收入 | B28: 5,900 | C28: 5,025 | D28: 85.2 | E28: 2,424 | F28: 2,601 | G28: 107.3 | H28: =C28-'[1]2024年10月 '!C28 -> 113 | I28: =E28-'[1]2024年10月 '!E28 -> 0 | J28: 113
A29: 8、国有资本经营收入 | E29: 10 | F29: -10 | G29: -100.0 | H29: =C29-'[1]2024年10月 '!C29 -> 0 | I29: =E29-'[1]2024年10月 '!E29 -> 5 | J29: -5 | K29: -100.0
A30: 一、一般公共预算收入 | B30: =B6+B21 -> 145,800 | C30: =C6+C21 -> 119,543 | D30: =C30/B30*100 -> 82.0 | E30: 117,657 | F30: 1,886 | G30: 1.6 | H30: 5,951 | I30: 7,001 | J30: -1,050 | K30: -15.0
A31: 二、政府性基金预算收入小计 | B31: 158,877 | C31: 44,718 | D31: 28.1 | E31: 41,309 | F31: 3,409 | G31: 8.3 | H31: =C31-'[1]2024年10月 '!C31 -> 1,933 | I31: =E31-'[1]2024年10月 '!E31 -> 1,779 | J31: 154 | K31: 8.7
A32: 其中：国有土地使用权出让收入 | B32: 152,307 | C32: 36,997 | D32: 24.3 | E32: 35,945 | F32: 1,052 | G32: 2.9 | H32: =C32-'[1]2024年10月 '!C32 -> 1,554 | I32: =E32-'[1]2024年10月 '!E32 -> 1,352 | J32: 202 | K32: 14.9
A33: 三、国有资本经营收入小计 | B33: 60,600 | C33: 500 | D33: 0.8 | E33: 500 | F33: 0 | G33: 0.0 | H33: =C33-'[1]2024年10月 '!C33 -> 0 | I33: =E33-'[1]2024年10月 '!E33 -> 0 | J33: 0
A34: 收入合计 | B34: =B30+B31+B33 -> 365,277 | C34: =C30+C31+C33 -> 164,761 | D34: 45.1 | E34: 159,466 | F34: 5,295 | G34: 3.3 | H34: 7,884 | I34: 8,780 | J34: -896 | K34: =J34/I34*100 -> -10.2
L35: 陆丰市财政局国库股
